bitfinex-derivatives/quotes_BTCF0:USTF0_20251110
["timestamp","ask_amount","ask_price","bid_price","bid_amount"]
[1762734600794,1.05673802,105540.0,105530.0,0.82940264]
[1762734600987,1.05673802,105540.0,105530.0,0.66647264]
[1762734601292,1.05773802,105540.0,105530.0,0.03306094]
[1762734601494,1.05773802,105540.0,105530.0,0.008]
[1762734602191,1.05973802,105540.0,105530.0,0.018]
[1762734602388,1.06573802,105540.0,105530.0,0.011]
[1762734602596,1.06573802,105540.0,105530.0,0.8153417]
[1762734602889,1.06573802,105540.0,105530.0,0.71056]
[1762734602890,1.06373802,105540.0,105530.0,0.71056]
[1762734603095,1.07673802,105540.0,105530.0,0.003]
[1762734603389,1.07673802,105540.0,105530.0,0.28074]
[1762734603891,1.07373802,105540.0,105530.0,0.54963]
[1762734604095,0.53209,105530.0,105520.0,0.02520302]
[1762734604304,0.68593803,105530.0,105520.0,0.00014208]
[1762734604590,1.01921803,105530.0,105520.0,0.00014208]
[1762734604988,1.74081803,105530.0,105520.0,0.00014208]
[1762734605697,1.74181803,105530.0,105520.0,0.00314208]
[1762734605892,1.74181803,105530.0,105520.0,0.00414208]
[1762734606391,1.75481803,105530.0,105520.0,0.00214208]
[1762734607195,1.75481803,105530.0,105520.0,0.00114208]
[1762734607395,1.76381803,105530.0,105520.0,0.00214208]
[1762734608394,1.76381803,105530.0,105520.0,0.54877208]
[1762734608896,1.43053803,105530.0,105520.0,0.00214208]
[1762734612396,1.44053802,105530.0,105520.0,0.00214208]
[1762734612601,0.68374,105520.0,105510.0,0.00010051]
[1762734612796,1.04673803,105520.0,105510.0,0.00010051]
[1762734613103,1.04673803,105520.0,105510.0,0.54673051]
[1762734613886,1.05473803,105520.0,105510.0,0.00110051]
[1762734614092,1.05473803,105520.0,105510.0,0.54773051]
[1762734614494,1.06573803,105520.0,105510.0,0.56873051]
[1762734614706,1.06573803,105520.0,105510.0,0.71166051]
[1762734615003,1.07573802,105520.0,105510.0,0.71166051]
[1762734615204,1.07573802,105520.0,105510.0,0.54873051]
[1762734615405,1.07573802,105520.0,105510.0,0.00210051]
[1762734619705,1.07573802,105520.0,105510.0,0.54873051]
[1762734620308,1.07573802,105520.0,105510.0,0.27984051]
[1762734621398,0.92408802,105520.0,105510.0,0.80646021]
[1762734621706,0.92408802,105520.0,105510.0,1.14646021]
[1762734621912,0.38199803,105520.0,105510.0,1.14646021]
[1762734622702,0.02119803,105520.0,105510.0,1.14646021]
[1762734623014,0.019,105520.0,105510.0,1.98338021]
[1762734623320,0.019,105520.0,105510.0,2.34418021]
[1762734623817,0.019,105520.0,105510.0,2.37758887]
[1762734624309,0.01386706,105520.0,105510.0,2.52245844]
[1762734624509,0.51245,105550.0,105540.0,0.61575]
[1762734624510,0.89289,105550.0,105540.0,0.61575]
[1762734624707,0.37299802,105550.0,105540.0,1.0105227]
[1762734624903,0.63082802,105550.0,105540.0,1.0105227]
[1762734625212,0.01219802,105550.0,105540.0,1.0105227]
[1762734625508,0.27002802,105550.0,105540.0,1.0105227]
[1762734625813,0.26002803,105550.0,105540.0,1.0105227]
[1762734626214,0.01219802,105550.0,105540.0,1.0105227]
[1762734626509,0.03819802,105550.0,105540.0,1.0135227]
[1762734626901,0.026,105550.0,105540.0,1.2504027]
[1762734627102,0.36094208,105560.0,105550.0,0.6178437]
[1762734627309,0.62263011,105560.0,105550.0,1.01577]
[1762734627508,0.36314011,105560.0,105550.0,1.1105337]
[1762734627709,0.8923601,105560.0,105550.0,1.1105337]
[1762734627908,0.88236011,105560.0,105550.0,1.1105337]
[1762734628112,0.6326301,105560.0,105550.0,1.1105337]
[1762734628313,0.0133401,105560.0,105550.0,1.1215337]
[1762734628813,0.00334011,105560.0,105550.0,1.4823337]
[1762734629009,0.00114208,105560.0,105550.0,1.1215337]
[1762734629211,0.01114207,105560.0,105550.0,1.19864609]
[1762734629412,0.01314207,105560.0,105550.0,1.22064609]
[1762734629618,0.01214207,105560.0,105550.0,1.20964609]
[1762734629813,0.5345601,105560.0,105550.0,1.12588239]
[1762734630812,0.5345601,105560.0,105550.0,1.12388239]
[1762734631013,0.2748301,105560.0,105550.0,1.21864609]
[1762734631311,0.00534011,105560.0,105550.0,1.21864609]
[1762734631512,0.0153401,105560.0,105550.0,1.21864609]
[1762734631703,0.5345601,105560.0,105550.0,1.21864609]
[1762734632218,0.2748301,105560.0,105550.0,1.21864609]
[1762734632515,0.5345601,105560.0,105550.0,1.21864609]
[1762734633117,0.00314208,105560.0,105550.0,1.21864609]
[1762734633315,0.00314208,105560.0,105550.0,1.57944609]
[1762734633613,1.09e-06,105560.0,105550.0,1.57944609]
[1762734633814,0.00219912,105560.0,105550.0,1.21864609]
[1762734634015,0.68183912,105560.0,105550.0,0.96119239]
[1762734634314,0.68183912,105560.0,105550.0,0.031]
[1762734634315,1.28183912,105560.0,105550.0,0.031]
[1762734634515,0.68963999,105540.0,105530.0,0.52322208]
[1762734634812,1.05263802,105540.0,105530.0,0.80322208]
[1762734635014,1.41343802,105540.0,105530.0,0.28014208]
[1762734635214,1.05263802,105540.0,105530.0,0.96591208]
[1762734635417,0.27168802,105540.0,105530.0,1.06069378]
[1762734635627,0.01219802,105540.0,105530.0,1.13828308]
[1762734635915,0.01719802,105540.0,105530.0,1.13828308]
[1762734636314,0.00999999,105540.0,105530.0,1.13828308]
[1762734636513,0.01099999,105540.0,105530.0,1.51408308]
[1762734636715,0.01319802,105540.0,105530.0,1.15328308]
[1762734636908,0.53241802,105540.0,105530.0,1.14928308]
[1762734637118,0.53241802,105540.0,105530.0,1.14828308]
[1762734637510,0.53241802,105540.0,105530.0,1.17228308]
[1762734637511,0.01519802,105540.0,105530.0,1.17228308]
[1762734637710,0.01519802,105540.0,105530.0,1.53308308]
[1762734638509,1.05563802,105540.0,105530.0,0.91481138]
[1762734638712,1.05563802,105540.0,105530.0,0.58482208]
[1762734638917,1.05563802,105540.0,105530.0,0.03414208]
[1762734639121,1.65563802,105540.0,105530.0,0.03414208]
[1762734639320,0.65549999,105520.0,105510.0,0.39359889]
[1762734639627,1.01849802,105520.0,105510.0,0.56829613]
[1762734640423,1.02049802,105520.0,105510.0,0.58329613]
[1762734640817,1.02149802,105520.0,105510.0,0.61729613]
[1762734641016,1.02149802,105520.0,105510.0,0.59729613]
[1762734641213,1.02149802,105520.0,105510.0,0.61729613]
[1762734641417,1.02149802,105520.0,105510.0,0.59729613]
[1762734641616,1.02149802,105520.0,105510.0,0.61729613]
[1762734641826,1.02149802,105520.0,105510.0,0.59729613]
[1762734642329,1.02149802,105520.0,105510.0,1.13478583]
[1762734643130,1.01149803,105520.0,105510.0,0.75998613]
[1762734643327,1.02149802,105520.0,105510.0,0.87478583]
[1762734643828,1.02149802,105520.0,105510.0,1.19478583]
[1762734644432,1.01149803,105520.0,105510.0,1.09998613]
[1762734644731,1.02149802,105520.0,105510.0,1.09998613]
[1762734645430,1.02149802,105520.0,105510.0,1.17702905]
[1762734645827,1.02149802,105520.0,105510.0,1.01433905]
[1762734648322,1.02149802,105520.0,105510.0,0.34489613]
[1762734648532,1.02149802,105520.0,105510.0,0.07421613]
[1762734648937,1.02149802,105520.0,105510.0,0.40701613]
[1762734649332,1.02149802,105520.0,105510.0,0.67752613]
[1762734650229,1.02149802,105520.0,105510.0,0.40701613]
[1762734650435,1.02149802,105520.0,105510.0,0.67752613]
[1762734650833,1.02149802,105520.0,105510.0,0.07421613]
[1762734651032,1.02149802,105520.0,105510.0,0.36190051]
[1762734651540,1.02149802,105520.0,105510.0,0.89658051]
[1762734651934,1.02149802,105520.0,105510.0,1.15376021]
[1762734651935,0.89521802,105520.0,105510.0,1.15376021]
[1762734652243,1.05122802,105520.0,105510.0,0.89658051]
[1762734652435,1.05122802,105520.0,105510.0,0.36190051]
[1762734652842,1.05122802,105520.0,105510.0,0.02910051]
[1762734653738,1.04922802,105520.0,105510.0,0.01410051]
[1762734653940,1.06722802,105520.0,105510.0,0.10890021]
[1762734654135,1.06722802,105520.0,105510.0,0.37941021]
[1762734654329,1.06722802,105520.0,105510.0,0.64358021]
[1762734654634,1.06722802,105520.0,105510.0,0.28461051]
[1762734654941,1.07322802,105520.0,105510.0,0.53578051]
[1762734655142,1.07322802,105520.0,105510.0,0.00110051]
[1762734655341,1.07322802,105520.0,105510.0,0.27061051]
[1762734655342,1.06622802,105520.0,105510.0,0.27061051]
[1762734655541,1.07422802,105520.0,105510.0,0.27161051]
[1762734655737,1.07822802,105520.0,105510.0,0.27161051]
[1762734656344,1.07822802,105520.0,105510.0,0.53578051]
[1762734657047,1.07822802,105520.0,105510.0,0.27161051]
[1762734657243,1.07822802,105520.0,105510.0,0.00110051]
[1762734658146,1.07822802,105520.0,105510.0,0.26124051]
[1762734659946,1.07822802,105520.0,105510.0,0.00110051]
[1762734660542,1.06822803,105520.0,105510.0,0.26124051]
[1762734660748,1.07822802,105520.0,105510.0,0.26124051]
[1762734660946,1.06822803,105520.0,105510.0,0.35604021]
[1762734661145,1.06822803,105520.0,105510.0,0.71256051]
[1762734661339,1.07822802,105520.0,105510.0,0.53149051]
[1762734661742,1.07822802,105520.0,105510.0,0.90736021]
[1762734661947,1.04046803,105520.0,105510.0,0.80736021]
[1762734662143,1.05046802,105520.0,105510.0,0.53149051]
[1762734662950,1.04046803,105520.0,105510.0,0.53149051]
[1762734663150,1.04046803,105520.0,105510.0,0.89736021]
[1762734663347,1.04046803,105520.0,105510.0,0.78736021]
[1762734663555,1.04046803,105520.0,105510.0,0.89736021]
[1762734663848,1.05046802,105520.0,105510.0,0.69256051]
[1762734664353,1.05046802,105520.0,105510.0,0.78736021]
[1762734664545,1.05046802,105520.0,105510.0,0.69256051]
[1762734665847,0.91221803,105520.0,105510.0,0.78736021]
[1762734666048,0.39299803,105520.0,105510.0,1.06736021]
[1762734666347,0.03219803,105520.0,105510.0,1.46150006]
[1762734666548,0.03,105520.0,105510.0,1.51150984]
[1762734667161,0.03,105520.0,105510.0,1.47816999]
[1762734667365,0.03,105520.0,105510.0,1.51158435]
[1762734668664,0.56175803,105520.0,105510.0,1.15078435]
[1762734668862,0.30196803,105520.0,105510.0,1.15078435]
[1762734669063,0.30196803,105520.0,105510.0,1.51158435]
[1762734669263,0.30196803,105520.0,105510.0,1.15078435]
[1762734669462,0.30196803,105520.0,105510.0,1.46157457]
[1762734669766,0.30196803,105520.0,105510.0,1.15078435]
[1762734669962,0.92255803,105520.0,105510.0,1.00597487]
[1762734670164,1.08099803,105520.0,105510.0,1.00597487]
[1762734670463,1.08099803,105520.0,105510.0,0.81149051]
[1762734670867,1.08099803,105520.0,105510.0,0.53149051]
[1762734671670,0.72019803,105520.0,105510.0,1.06736021]
[1762734671865,0.57175802,105520.0,105510.0,1.06736021]
[1762734672867,1.09099802,105520.0,105510.0,0.53149051]
[1762734674066,1.09099802,105520.0,105510.0,0.69256051]
[1762734674262,1.09099802,105520.0,105510.0,0.53149051]
[1762734674677,1.09099802,105520.0,105510.0,0.26124051]
[1762734675868,1.09099802,105520.0,105510.0,0.53149051]
[1762734676366,1.09099802,105520.0,105510.0,0.62629021]
[1762734676574,0.93255802,105520.0,105510.0,1.05736021]
[1762734676773,0.92255803,105520.0,105510.0,1.05736021]
[1762734676968,0.39299803,105520.0,105510.0,1.05736021]
[1762734677173,0.04219802,105520.0,105510.0,1.05736021]
[1762734677374,0.04219802,105520.0,105510.0,1.09077457]
[1762734677668,0.04219802,105520.0,105510.0,1.45157457]
[1762734677865,0.31196802,105520.0,105510.0,1.45157457]
[1762734678477,0.03,105520.0,105510.0,1.50158435]
[1762734678669,0.03,105520.0,105510.0,1.46816999]
[1762734679370,0.03,105520.0,105510.0,1.50158368]
[1762734679768,0.03,105520.0,105510.0,1.46816999]
[1762734680166,0.03,105520.0,105510.0,1.50158127]
[1762734680774,0.03,105520.0,105510.0,1.46816999]
[1762734681574,0.03219803,105520.0,105510.0,1.45156029]
[1762734681974,0.03219803,105520.0,105510.0,1.50157007]
[1762734682179,0.56175803,105520.0,105510.0,1.45156029]
[1762734684170,0.03219803,105520.0,105510.0,1.50157007]
[1762734686470,0.00014208,105530.0,105520.0,0.6232707]
[1762734686668,0.00014208,105530.0,105520.0,1.16134643]
[1762734686868,0.00014208,105530.0,105520.0,1.52214643]
[1762734687564,0.01014208,105530.0,105520.0,1.52314643]
[1762734688377,0.02114208,105530.0,105520.0,1.52514643]
[1762734688868,0.02114208,105530.0,105520.0,1.57515621]
[1762734689378,0.03114207,105530.0,105520.0,1.52514643]
[1762734689675,0.03114207,105530.0,105520.0,1.57515621]
[1762734690077,0.02114208,105530.0,105520.0,1.57515621]
[1762734690277,0.02114208,105530.0,105520.0,1.54176048]
[1762734690573,0.02114208,105530.0,105520.0,1.60812901]
[1762734690770,0.3608,105550.0,105540.0,0.0947727]
[1762734690971,0.90951,105560.0,105550.0,0.7879238]
[1762734691268,0.91170803,105560.0,105550.0,1.17429233]
[1762734691669,0.92170802,105560.0,105550.0,1.17429233]
[1762734692070,0.56090802,105560.0,105550.0,1.17429233]
[1762734692278,0.51938208,105570.0,105560.0,0.7879148]
[1762734692279,0.90965208,105570.0,105560.0,0.7879148]
[1762734692473,0.0123401,105570.0,105560.0,1.50508333]
[1762734692670,0.5610501,105570.0,105560.0,1.04952853]
[1762734692873,1.07471011,105570.0,105560.0,0.81848]
[1762734693065,1.0847101,105570.0,105560.0,0.81848]
[1762734693379,1.0847101,105570.0,105560.0,0.52848]
[1762734693577,1.0847101,105570.0,105560.0,0.57848]
[1762734693778,1.0847101,105570.0,105560.0,0.6732348]
[1762734694173,1.0847101,105570.0,105560.0,0.57848]
[1762734694380,1.0847101,105570.0,105560.0,0.58248]
[1762734694576,1.0867101,105570.0,105560.0,0.60048]
[1762734694782,1.0867101,105570.0,105560.0,0.9999148]
[1762734695278,0.9228501,105570.0,105560.0,0.9879148]
[1762734695579,0.5650501,105570.0,105560.0,1.10556134]
[1762734696081,0.55505011,105570.0,105560.0,1.10556134]
[1762734696385,0.5650501,105570.0,105560.0,1.01080654]
[1762734696576,0.9258501,105570.0,105560.0,1.01080654]
[1762734696777,0.9228501,105570.0,105560.0,1.01080654]
[1762734696973,1.0857101,105570.0,105560.0,0.45514]
[1762734697170,1.0857101,105570.0,105560.0,0.26514]
[1762734697571,1.0857101,105570.0,105560.0,0.54048]
[1762734697773,1.0857101,105570.0,105560.0,0.6352348]
[1762734698081,1.0857101,105570.0,105560.0,0.54048]
[1762734698978,1.0857101,105570.0,105560.0,0.61441691]
[1762734699387,1.0857101,105570.0,105560.0,0.94665691]
[1762734699682,1.0857101,105570.0,105560.0,0.012]
[1762734701483,1.0857101,105570.0,105560.0,0.1067548]
[1762734701684,1.0857101,105570.0,105560.0,0.6352348]
[1762734701878,1.0857101,105570.0,105560.0,0.5710296]
[1762734702080,1.0857101,105570.0,105560.0,0.82267614]
[1762734702280,1.0857101,105570.0,105560.0,0.85267614]
[1762734702482,0.9228501,105570.0,105560.0,0.97267614]
[1762734702682,0.5620501,105570.0,105560.0,1.13735614]
[1762734702884,0.28252011,105570.0,105560.0,1.13735614]
[1762734703190,0.9228501,105570.0,105560.0,1.13735614]
[1762734703385,0.55205011,105570.0,105560.0,1.13735614]
[1762734703592,0.5620501,105570.0,105560.0,1.13735614]
[1762734703782,0.55205011,105570.0,105560.0,1.13735614]
[1762734704594,0.28252011,105570.0,105560.0,1.49815614]
[1762734704802,0.00114208,105570.0,105560.0,1.49815614]
[1762734705101,0.00114208,105570.0,105560.0,1.49565614]
[1762734705290,0.00114208,105570.0,105560.0,1.13485614]
[1762734705991,0.91285011,105570.0,105560.0,1.04010134]
[1762734706384,1.07571011,105570.0,105560.0,0.87542134]
[1762734707091,1.07571011,105570.0,105560.0,0.7537748]
[1762734708491,1.07571011,105570.0,105560.0,0.8485296]
[1762734708692,1.07571011,105570.0,105560.0,0.7537748]
[1762734709001,1.07571011,105570.0,105550.0,0.92501822]
[1762734709002,0.69651999,105560.0,105550.0,0.92501822]
[1762734709303,0.68652,105550.0,105540.0,0.00014208]
[1762734709488,1.04951803,105550.0,105540.0,0.00014208]
[1762734709691,1.04951803,105550.0,105540.0,0.25085208]
[1762734709997,1.04951803,105550.0,105540.0,0.51837208]
[1762734710600,1.05051803,105550.0,105540.0,0.55137208]
[1762734710799,1.06051802,105550.0,105540.0,0.76779172]
[1762734710987,1.06051802,105550.0,105540.0,0.66501862]
[1762734711190,1.06051802,105550.0,105540.0,0.85901862]
[1762734711386,1.06051802,105550.0,105540.0,0.95379172]
[1762734711598,0.88433803,105550.0,105540.0,1.05818172]
[1762734712092,0.36399803,105550.0,105540.0,1.05818172]
[1762734712295,0.26370803,105550.0,105540.0,1.41898172]
[1762734712495,0.26270803,105550.0,105540.0,1.05318172]
[1762734712694,0.26370803,105550.0,105540.0,1.09157244]
[1762734712895,0.26370803,105550.0,105540.0,1.05818172]
[1762734713102,0.26370803,105550.0,105540.0,1.41898172]
[1762734713403,0.00319803,105550.0,105540.0,1.45237244]
[1762734713601,0.00014208,105570.0,105560.0,0.40471]
[1762734713900,1.04966011,105570.0,105560.0,0.83823]
[1762734714087,0.68652,105550.0,105540.0,0.85180815]
[1762734714292,0.52253803,105550.0,105540.0,1.25006425]
[1762734714491,0.88333803,105550.0,105540.0,1.25006425]
[1762734714897,0.88333803,105550.0,105540.0,1.28337815]
[1762734715098,0.88333803,105550.0,105540.0,1.18860505]
[1762734715301,0.88333803,105550.0,105540.0,1.28337815]
[1762734715502,0.00219803,105550.0,105540.0,1.63917815]
[1762734715705,0.88114,105560.0,105550.0,0.6129941]
[1762734715912,0.88333803,105560.0,105550.0,1.07464064]
[1762734716306,0.00219803,105560.0,105550.0,1.10795454]
[1762734716608,0.53014803,105560.0,105550.0,1.10795454]
[1762734716903,0.53114803,105560.0,105550.0,1.11895454]
[1762734717804,0.53114803,105560.0,105550.0,1.47975454]
[1762734717992,0.53114803,105560.0,105550.0,1.11895454]
[1762734718396,0.53314803,105560.0,105550.0,1.13595454]
[1762734718596,0.00519803,105560.0,105550.0,1.13595454]
[1762734719002,0.00519803,105560.0,105550.0,1.014308]
[1762734719003,0.28145803,105560.0,105550.0,1.014308]
[1762734719199,0.28145803,105560.0,105550.0,1.13595454]
[1762734719402,0.003,105560.0,105550.0,1.59560064]
[1762734719603,0.003,105560.0,105550.0,1.6455715]
[1762734724101,0.00519803,105560.0,105550.0,1.6455715]
[1762734725910,0.67897803,105560.0,105550.0,1.3417941]
[1762734726111,0.67897803,105560.0,105550.0,1.00787654]
[1762734726305,0.28145803,105560.0,105550.0,1.23480064]
[1762734726510,0.00519803,105560.0,105550.0,1.23480064]
[1762734726911,0.53314803,105560.0,105550.0,1.23480064]
[1762734727212,0.00519803,105560.0,105550.0,1.59560064]
[1762734727401,0.00519803,105560.0,105550.0,1.23480064]
[1762734729209,0.00519803,105560.0,105550.0,1.6455715]
[1762734729511,0.00519803,105560.0,105550.0,1.64563692]
[1762734729709,0.00519803,105560.0,105550.0,1.28483692]
[1762734730309,0.00519803,105560.0,105550.0,1.64563692]
[1762734730503,0.00519803,105560.0,105550.0,1.59560064]
[1762734730919,0.003,105560.0,105550.0,1.59560064]
[1762734731702,0.003,105560.0,105550.0,1.64564712]
[1762734732011,0.53314803,105560.0,105550.0,1.64564712]
[1762734732212,0.00519803,105560.0,105550.0,1.64564712]
[1762734732801,0.003,105560.0,105550.0,1.59560064]
[1762734733608,0.003,105560.0,105550.0,1.662268]
[1762734734318,0.003,105560.0,105550.0,1.59560064]
[1762734734814,0.00014208,105570.0,105560.0,0.25763]
[1762734735115,1.03908,105590.0,105580.0,0.50758]
[1762734735317,0.67378,105580.0,105570.0,0.66256435]
[1762734735518,0.67378,105570.0,105560.0,0.72398174]
[1762734735813,0.53014803,105570.0,105560.0,1.54911955]
[1762734736014,0.53014803,105570.0,105560.0,1.78995955]
[1762734736214,0.001,105570.0,105560.0,1.79495955]
[1762734736514,0.001,105570.0,105560.0,1.5747966]
[1762734736906,0.27945803,105570.0,105560.0,1.5747966]
[1762734737411,0.00319803,105570.0,105560.0,1.5747966]
[1762734737616,0.001,105570.0,105560.0,1.52478174]
[1762734737811,0.0045,105590.0,105570.0,0.7553262]
[1762734738112,0.0045,105650.0,105620.0,0.0947013]
[1762734738317,0.3653,105650.0,105630.0,0.95802736]
[1762734738614,0.0045,105650.0,105640.0,0.75879076]
[1762734738813,0.0045,105650.0,105640.0,1.07879076]
[1762734739014,0.0045,105650.0,105640.0,1.17345187]
[1762734739212,0.0045,105650.0,105640.0,1.10678451]
[1762734739609,0.0045,105650.0,105640.0,0.87014451]
[1762734739809,0.0045,105650.0,105640.0,1.47014451]
[1762734740009,0.0045,105650.0,105640.0,1.77345187]
[1762734740210,0.0045,105650.0,105640.0,1.53681187]
[1762734740513,0.0045,105650.0,105640.0,1.77345187]
[1762734740716,0.0045,105680.0,105650.0,0.8993533]
[1762734740901,0.36749803,105680.0,105650.0,1.50562108]
[1762734741107,0.36749803,105680.0,105650.0,1.58151483]
[1762734741401,0.36749803,105680.0,105650.0,1.20279956]
[1762734741604,0.23660217,105660.0,105650.0,0.96619956]
[1762734741806,0.23660217,105660.0,105650.0,0.97519956]
[1762734742007,0.36849803,105680.0,105650.0,1.21179956]
[1762734742203,0.834,105670.0,105660.0,0.0946573]
[1762734742402,0.67378,105660.0,105650.0,0.09007583]
[1762734742609,1.79446019,105660.0,105650.0,0.43881638]
[1762734742809,0.6374802,105660.0,105650.0,0.53346405]
[1762734743013,0.03788,105660.0,105650.0,0.53346405]
[1762734743520,0.90324999,105680.0,105660.0,0.0946654]
[1762734743817,0.64375803,105680.0,105660.0,0.4346654]
[1762734744018,0.27448217,105670.0,105660.0,0.34]
[1762734744218,0.03788,105670.0,105660.0,0.52929963]
[1762734744411,0.04007803,105670.0,105660.0,0.52929963]
[1762734744612,0.2766802,105670.0,105660.0,0.53429963]
[1762734744807,0.2766802,105670.0,105660.0,0.53829963]
[1762734745013,0.04007803,105670.0,105660.0,0.53829963]
[1762734745213,0.27448217,105670.0,105660.0,0.53829963]
[1762734745412,0.03788,105670.0,105660.0,0.53429963]
[1762734745608,0.27548217,105670.0,105660.0,0.54429963]
[1762734745809,0.001,105670.0,105660.0,0.90509963]
[1762734746205,0.001,105670.0,105660.0,1.14169963]
[1762734746410,0.001,105670.0,105660.0,1.13669963]
[1762734746619,0.23960217,105670.0,105660.0,0.91609963]
[1762734747120,0.003,105670.0,105660.0,1.15269963]
[1762734747720,0.23960217,105670.0,105660.0,0.91609963]
[1762734747919,0.003,105670.0,105660.0,1.15269963]
[1762734748108,0.23960217,105670.0,105660.0,0.91609963]
[1762734748522,0.003,105670.0,105660.0,1.15269963]
[1762734749414,0.003,105670.0,105660.0,0.91609963]
[1762734749611,0.23960217,105670.0,105660.0,0.91609963]
[1762734750012,0.003,105670.0,105660.0,1.15269963]
[1762734750720,0.23960217,105670.0,105660.0,0.91609963]
[1762734750918,0.003,105670.0,105660.0,1.15269963]
[1762734751118,0.02068866,105670.0,105660.0,0.90009963]
[1762734751324,6e-08,105680.0,105670.0,0.3312564]
[1762734751510,6e-08,105680.0,105670.0,1.0320564]
[1762734751918,6e-08,105680.0,105670.0,1.12669511]
[1762734752223,6e-08,105680.0,105670.0,1.12665511]
[1762734752718,0.00200006,105680.0,105670.0,1.14265511]
[1762734752919,1.54809809,105680.0,105670.0,0.54529511]
[1762734753223,1.51021809,105680.0,105670.0,0.356]
[1762734753517,2.15809808,105680.0,105670.0,0.367]
[1762734753722,2.15809808,105680.0,105670.0,0.36200446]
[1762734754310,2.15809808,105680.0,105670.0,0.45666086]
[1762734756020,2.15809808,105680.0,105670.0,0.36200446]
[1762734756220,2.15809808,105680.0,105670.0,0.45666086]
[1762734756420,1.55809808,105680.0,105670.0,0.45666086]
[1762734757116,1.08493808,105680.0,105670.0,0.45666086]
[1762734757919,2.15809808,105680.0,105670.0,0.32412446]
[1762734758222,0.68205999,105660.0,105650.0,0.09481648]
[1762734758417,1.40585802,105660.0,105650.0,0.39481648]
[1762734758622,1.87909802,105660.0,105650.0,0.39481648]
[1762734758924,1.87909802,105660.0,105650.0,0.39481638]
[1762734759326,1.86909803,105660.0,105650.0,1.01909405]
[1762734759824,1.44581803,105660.0,105650.0,1.01909405]
[1762734760024,0.72479803,105660.0,105650.0,1.03109405]
[1762734760424,0.72479803,105660.0,105650.0,1.03209405]
[1762734760933,0.72479803,105660.0,105650.0,1.02609405]
[1762734761126,0.72479803,105660.0,105650.0,1.03309405]
[1762734761822,0.00419803,105660.0,105650.0,1.39489405]
[1762734762418,0.002,105660.0,105650.0,1.63149405]
[1762734762617,0.002,105660.0,105650.0,1.39489405]
[1762734762926,0.002,105660.0,105650.0,1.63149405]
[1762734763315,0.00056445,105660.0,105650.0,1.63149405]
[1762734763820,0.36080006,105680.0,105670.0,0.6192864]
[1762734764019,0.36080006,105680.0,105670.0,0.9192864]
[1762734764415,0.83396006,105680.0,105670.0,1.01393407]
[1762734764929,0.83396006,105680.0,105670.0,1.01893407]
[1762734765225,0.83496006,105680.0,105670.0,1.01893407]
[1762734765614,0.36180006,105680.0,105670.0,1.25549407]
[1762734765818,0.001,105680.0,105670.0,1.61629407]
[1762734766131,0.001,105680.0,105670.0,1.66857506]
[1762734766328,0.001,105680.0,105670.0,1.7454106]
[1762734766528,0.001,105680.0,105670.0,1.5088506]
[1762734766931,0.001,105680.0,105670.0,1.7454106]
[1762734767128,0.001,105680.0,105670.0,1.69612961]
[1762734767530,0.001,105680.0,105670.0,1.45956961]
[1762734767925,0.001,105680.0,105670.0,1.69612961]
[1762734768125,0.001,105680.0,105670.0,1.98956961]
[1762734768435,0.001,105680.0,105670.0,2.22612961]
[1762734768625,0.001,105680.0,105670.0,1.98956961]
[1762734769428,0.001,105680.0,105670.0,2.22612961]
[1762734770828,0.001,105680.0,105670.0,2.29255735]
[1762734771026,0.001,105680.0,105670.0,2.05599735]
[1762734771534,0.001,105680.0,105670.0,2.29255735]
[1762734771829,0.001,105680.0,105670.0,2.27100554]
[1762734772030,0.001,105680.0,105670.0,2.35401336]
[1762734772221,0.001,105680.0,105670.0,1.74100554]
[1762734772426,0.001,105680.0,105670.0,2.27092554]
[1762734772833,0.001,105680.0,105670.0,1.38020554]
[1762734773037,0.001,105680.0,105670.0,1.91012554]
[1762734773226,0.001,105680.0,105670.0,1.91312554]
[1762734773427,0.001,105680.0,105670.0,1.97955148]
[1762734773627,0.70898803,105680.0,105670.0,1.44963148]
[1762734773826,0.70898803,105680.0,105670.0,1.15364554]
[1762734773827,2.14294803,105680.0,105670.0,1.15364554]
[1762734774033,2.14294803,105680.0,105670.0,0.1127268]
[1762734774234,2.14294803,105680.0,105670.0,0.57061723]
[1762734774435,1.54294803,105680.0,105670.0,1.0722232]
[1762734774628,1.54294803,105680.0,105670.0,1.16685296]
[1762734775023,1.54194803,105680.0,105670.0,1.18142803]
[1762734775329,1.54794803,105680.0,105670.0,1.10900209]
[1762734775734,1.54294803,105680.0,105670.0,1.17542803]
[1762734775939,1.54294803,105680.0,105670.0,0.43871644]
[1762734776129,2.15294802,105680.0,105670.0,0.09210947]
[1762734776335,2.15294802,105680.0,105670.0,0.40803593]
[1762734776528,2.15294802,105680.0,105670.0,0.39203593]
[1762734776933,2.15294802,105680.0,105670.0,0.40803593]
[1762734777126,2.15294802,105680.0,105670.0,0.41103593]
[1762734777336,2.15294802,105680.0,105670.0,0.48569233]
[1762734777532,2.15194802,105680.0,105670.0,0.41103593]
[1762734777735,2.15294802,105680.0,105670.0,0.41103593]
[1762734778237,2.15294802,105680.0,105670.0,0.50569233]
[1762734778436,2.14294803,105680.0,105670.0,0.79169233]
[1762734778635,2.15294802,105680.0,105670.0,0.50169233]
[1762734778832,2.15294802,105680.0,105670.0,0.66703593]
[1762734779026,0.53934,105670.0,105660.0,0.12789084]
[1762734779229,1.73629803,105670.0,105660.0,0.74089084]
[1762734780135,1.73629803,105670.0,105660.0,1.00536084]
[1762734780329,1.73729803,105670.0,105660.0,1.1323373]
[1762734780736,0.001,105670.0,105660.0,1.55772552]
[1762734781039,0.64237803,105670.0,105660.0,1.00471095]
[1762734781230,1.37653803,105670.0,105660.0,1.55175195]
[1762734782239,1.37653803,105670.0,105660.0,1.48532601]
[1762734782639,0.83719803,105670.0,105660.0,1.48532601]
[1762734782833,0.3618,105670.0,105660.0,1.72192601]
[1762734783035,0.36399803,105670.0,105660.0,1.72192601]
[1762734783333,0.00319803,105670.0,105660.0,1.48532601]
[1762734783534,0.3608,105680.0,105670.0,0.6143965]
[1762734783738,0.3608,105690.0,105680.0,0.24863476]
[1762734783935,0.51773,105700.0,105680.0,1.06839486]
[1762734784128,0.51992803,105700.0,105680.0,0.92645566]
[1762734784434,1.11226,105690.0,105680.0,0.56565566]
[1762734784635,1.01242,105690.0,105680.0,0.56565566]
[1762734784841,0.27838,105690.0,105680.0,0.56565566]
[1762734785139,1.05707,105700.0,105680.0,0.56565566]
[1762734785350,0.15912803,105700.0,105680.0,1.16301566]
[1762734785545,0.15912803,105700.0,105680.0,0.92645566]
[1762734785842,0.005,105690.0,105680.0,0.80221566]
[1762734786047,0.3658,105690.0,105680.0,0.56565566]
[1762734786337,0.90233803,105690.0,105680.0,0.56665566]
[1762734786744,0.90233803,105690.0,105680.0,0.5002683]
[1762734786930,0.90233803,105690.0,105680.0,0.4992683]
[1762734787134,0.90333803,105690.0,105680.0,0.5052683]